Cogmind - Beta 15 @@@ ROGUE MODE // 2025.08.07 @ 02:14:30 Player: shapeshifter Result: Destroyed by G-34 Mercenary with Small Laser Performance ------------- Evolutions (0) 0 Regions Visited (2) 400 Robots Destroyed (34) 170 Value Destroyed (722) 722 Prototype IDs (0) 0 Alien Tech Used (0) 0 Bonus (46) 46 TOTAL SCORE: 1338 Bonus ------- Follower Combat Kills 46 Cogmind --------- Core Integrity 0/250 Matter 287/300 Energy 275/275 System Corruption 0% Temperature Cool (16) Movement Treading (152) Location -10/Mines Parts ------- > --- POWER (1) -------- Deuterium Engine > --- PROPULSION (2) --- Light Treads Advanced Treads > --- UTILITY (2) ------ Large Storage Unit Seismic Detector > --- WEAPON (2) ------- Light Assault Rifle Light Assault Rifle > --- INVENTORY (15) --- Light Nuclear Core Light Treads Light Treads Light Treads Light Treads Improved Heat Sink Large Battery (200) Improved Terrain Scanner Core Shielding Hardlight Generator Medium Laser Small Laser Light Assault Rifle Peak State ------------ > --- POWER ------------ Deuterium Engine > --- PROPULSION ------- Light Treads Advanced Treads > --- UTILITY ---------- Large Storage Unit Seismic Detector > --- WEAPON ----------- Light Assault Rifle Light Assault Rifle > --- INVENTORY -------- Light Nuclear Core Light Treads Light Treads Light Treads Light Treads Wheel Wheel Improved Heat Sink Large Battery Improved Terrain Scanner Core Shielding Medium Laser Small Laser Light Assault Rifle Light Assault Rifle [Rating: 13] Favorites ----------- Power Ion Engine Engine Ion Engine Power Core Light Nuclear Core Propulsion Light Treads Treads Light Treads Utility Seismic Detector Device Seismic Detector Storage Large Storage Unit Weapon Light Assault Rifle Energy Gun Medium Laser Ballistic Gun Light Assault Rifle Build | -11 -10 -10 ------- Run | Yrd Mat Min Slots Evolved . | . . . Power . | . . . Propulsion . | . . . Utility . | . . . Weapon . | . . . Parts Attached 22 | 7 9 6 Power 5 | 1 2 2 Engine 4 | 1 1 2 Core 1 | . 1 . Reactor . | . . . Propulsion 8 | 2 4 2 Treads 8 | 2 4 2 Leg . | . . . Wheel . | . . . Hover . | . . . Flight . | . . . Utility 3 | 2 1 . Device 1 | 1 . . Storage 2 | 1 1 . Processor . | . . . Hackware . | . . . Protection . | . . . Artifact . | . . . Weapon 6 | 2 2 2 Energy Gun 1 | 1 . . Energy Cannon . | . . . Ballistic Gun 5 | 1 2 2 Ballistic Cannon . | . . . Launcher . | . . . Special Weapon . | . . . Impact Weapon . | . . . Slashing Weapon . | . . . Piercing Weapon . | . . . Special Melee Weapon . | . . . Unidentified Prototypes . | . . . Parts Lost 7 | . 4 3 Power 3 | . 2 1 Propulsion 2 | . 1 1 Utility . | . . . Weapon 2 | . 1 1 Highest Loss Streak 3 | . 3 1 To Critical Strikes . | . . . Average Backups 10 | 3 9 13 Power . | . . . Propulsion 5 | 1 5 5 Utility 2 | . 1 4 Weapon 2 | . 2 2 Tool/Special . | . . . Unused Backups 15 | . 1 14 Power 1 | . . 1 Propulsion 6 | . . 6 Utility 5 | . 1 4 Weapon 3 | . . 3 Tool/Special . | . . . Average Slot Usage (%) 99 | . 99 98 Engine 12 | . 13 9 Core 1 | . . 4 Treads 27 | . 27 27 Device 14 | . 14 14 Storage 14 | . 14 14 Energy Gun 1 | . . 3 Ballistic Gun 25 | . 27 23 Peak Build Rating 13 | 7 9 13 Average Rating 8 | 5 7 9 On Entrance 5 | . 7 9 Naked Turns . | . . . Heaviest Build 32 | 14 29 32 Greatest Support 42 | 40 40 42 Greatest Overweight (x) . | . . . Average Overweight (x) . | . . . Largest Inventory Capacity 15 | 8 15 15 Average Capacity 12 | 7 11 15 Most Carried 15 | 6 15 15 Average Carried 10 | 3 9 13 Final Capacity 15 | 8 15 15 Final Carried 13 | 5 13 13 Class Distribution -------------------- 100% | Mutant Dominant Class ---------------- Mutant | -10/Materials Mutant | -10/Mines Resources | -11 -10 -10 ----------- Run | Yrd Mat Min Matter Collected 752 | 276 382 94 Remotely . | . . . Salvage Created 1011 | 146 708 157 Parts 70 | 12 47 11 Haulers Intercepted 1 | . 1 . Recyclers Shooed . | . . . Parts Field Recycled . | . . . Retrieved Matter . | . . . Parts Self-Destructed . | . . . Prevented . | . . . Kills | -11 -10 -10 ------- Run | Yrd Mat Min Combat Hostiles Destroyed 25 | . 19 6 Guns 25 | . 19 6 Classes Destroyed 7 | 2 5 . Tunneler 4 | 4 . . Hauler 1 | . 1 . Recycler 1 | 1 . . Operator 1 | . 1 . Watcher 2 | . 2 . Swarmer 11 | . 8 3 Grunt 14 | . 11 3 Best Kill Streak 6 | 4 6 3 Combat Bots Only 5 | . 5 3 Max Kills in Single Turn 1 | 1 1 1 Gunslinging . | . . . Exploded . | . . . Melee . | . . . Uniques/NPCs Destroyed . | . . . Combat | -11 -10 -10 -------- Run | Yrd Mat Min Hostile Shots Fired 182 | . 121 61 Missed 45 | . 28 17 Hits 137 | . 93 44 Projectile 137 | . 93 44 Critical Strikes 3 | . 2 1 Damage Taken 1471 | . 960 511 Core 250 | . 118 132 Absorbed by Shields . | . . . Core Remaining (%) 100 | 100 . . Volleys Fired 127 | 11 83 33 Largest 2 | 2 2 2 Hottest 70 | 70 40 40 Shots Fired 228 | 22 159 47 Gun 228 | 22 159 47 Cannon . | . . . Launcher . | . . . Special . | . . . Kinetic 217 | 11 159 47 Thermal 11 | 11 . . Explosive . | . . . Electromagnetic . | . . . Robot Hit Streak 7 | 3 6 7 Robot Miss Streak 4 | 4 4 2 Penetration Max . | . . . Secondary Targets 4 | . 2 2 Max Gunslinging Chain 1 | . 1 1 Shots Hit Robots 122 | 9 80 33 Core Hits 63 | 7 40 16 Critical Kills 1 | . 1 . Critical Parts Destroyed 2 | . 2 . Critical Strikes 3 | . 3 . Destroy 3 | . 3 . Melee Attacks . | . . . Impact . | . . . Slashing . | . . . Piercing . | . . . Sneak Attacks . | . . . Combat Hostiles . | . . . Follow-up Attacks . | . . . Damage Inflicted 1267 | 116 876 275 Guns 1267 | 116 876 275 Cannons . | . . . Explosions . | . . . Melee . | . . . Ramming . | . . . Kinetic 1180 | 29 876 275 Thermal 87 | 87 . . Explosive . | . . . Electromagnetic . | . . . Impact . | . . . Slashing . | . . . Piercing . | . . . Highest Corruption . | . . . Average Corruption . | . . . Corruption Purged . | . . . Corruption Blocked . | . . . Overload Shots . | . . . Overflow Damage . | . . . Projectiles . | . . . Explosions . | . . . Melee . | . . . Knockbacks . | . . . Impact . | . . . Kinetic . | . . . Secondary . | . . . Self-Inflicted Damage . | . . . Shots . | . . . Rammed . | . . . Targets Rammed . | . . . Kicked . | . . . Crushed . | . . . Highest Temperature 60 | 60 24 19 Average Temperature 14 | 25 8 8 Received Heat Transfer 567 | . 357 210 Siege Activations . | . . . Martial Activations . | . . . Shielding Activations . | . . . Robots Disrupted . | . . . Combat Hostiles . | . . . Robots Corrupted . | . . . Combat Hostiles . | . . . Parts Fried . | . . . Impact Corruptions . | . . . Robots Melted . | . . . Combat Hostiles . | . . . Parts Melted . | . . . Heat Transferred 259 | 259 . . Parts Sabotaged . | . . . Parts Stolen . | . . . Parts Stripped . | . . . Power Chain Reactions . | . . . Alert | -11 -10 -10 ------- Run | Yrd Mat Min Maximum Alert Level . | . . . Low Security (%) 100 | 100 100 100 Level 1 . | . . . Level 2 . | . . . Level 3 . | . . . Level 4 . | . . . Level 5 . | . . . High Security . | . . . Max Security . | . . . Peak Influence 181 | 5 181 109 Initial 49 | . . 49 Average 60 | 1 84 25 Influence Increases 953 | 25 659 269 Destroy 0b10 Robot/C 580 | . 380 200 Destroy 0b10 Robot/NC 45 | 25 20 . Destroy Leader 116 | . 76 40 Allied During Kill 14 | . . 14 Successful Hack 48 | . 48 . Lose Combat Pursuer 150 | . 135 15 Influence Decreases 953 | 25 532 396 Entered New Map 78 | . . 78 Time Decay 755 | 25 492 238 Lost Part 60 | . 40 20 Lost Ally 60 | . . 60 Squads Dispatched 4 | . 3 1 Investigation 3 | . 2 1 Extermination . | . . . Reinforcement 1 | . 1 . Assault . | . . . Garrison . | . . . Intercept . | . . . Searches Triggered . | . . . Construction Impeded . | . . . Haulers Reinforced . | . . . Active Scanning Responses . | . . . Cargo Convoy Interrupts . | . . . Stealth | -11 -10 -10 --------- Run | Yrd Mat Min Distress Signals 1 | . 1 . Communications Jammed . | . . . Distress Signals . | . . . Times Spotted 48 | . 35 13 Peak Tracking Total 6 | . 6 5 Tactical Retreats 9 | . 8 1 Traps | -11 -10 -10 ------- Run | Yrd Mat Min Traps Triggered 1 | . 1 . Indirectly . | . . . Trap Hack Attempts . | . . . Triggered . | . . . Disarmed . | . . . Reprogrammed . | . . . Reused . | . . . Traps Extracted . | . . . Installed 1 | . . 1 Triggered . | . . . Machines | -11 -10 -10 ---------- Run | Yrd Mat Min Machines Disabled . | . . . Max in Single Turn . | . . . Machines Repaired . | . . . Machines Dismantled . | . . . Machines Sabotaged . | . . . Overloaded Fab Kills . | . . . Hacking | -11 -10 -10 --------- Run | Yrd Mat Min Machines Accessed 8 | . 7 1 Terminals 7 | . 7 . Fabricators . | . . . Repair Stations . | . . . Recycling Units . | . . . Scanalyzers . | . . . Garrison Access . | . . . Total Hacks 23 | . 22 1 Successful 12 | . 11 1 Failed 11 | . 11 . Catastrophic 2 | . 2 . Database Lockouts . | . . . Manual 17 | . 17 . Terminals 22 | . 22 . Fabricators . | . . . Repair Stations . | . . . Recycling Units . | . . . Scanalyzers . | . . . Garrison Access . | . . . Terminal Hacks 9 | . 8 1 Open Door 1 | . . 1 Branch Access Points 2 | . 2 . Recall Investigation 1 | . 1 . Registered Components 1 | . 1 . Zone Layout 4 | . 4 . Fabricator Hacks . | . . . Repair Station Hacks . | . . . Recycling Unit Hacks . | . . . Scanalyzer . | . . . Garrison Access Hacks . | . . . Unauthorized Hacks 3 | . 3 . Terminals 3 | . 3 . Botnet 3 | . 3 . Fabricators . | . . . Repair Stations . | . . . Recycling Units . | . . . Scanalyzers . | . . . Garrison Access . | . . . Data Cores Recovered . | . . . Used . | . . . Hacking Detections 5 | . 5 . Full Trace Events 3 | . 3 . Feedback Events . | . . . Feedback Blocked . | . . . Robot Schematics Acquired . | . . . Robots Built . | . . . Authchips . | . . . Time . | . . . Total Robot Build Rating . | . . . Part Schematics Acquired . | . . . Parts Built . | . . . Authchips . | . . . Time . | . . . Total Part Build Rating . | . . . Parts Repaired . | . . . Time . | . . . Parts Recycled . | . . . Recycled Matter . | . . . Retrieved Matter . | . . . Retrieved Components . | . . . Parts Scanalyzed . | . . . Part Schematics Acquired . | . . . Parts Damaged . | . . . Bothacking | -11 -10 -10 ------------ Run | Yrd Mat Min Used RIF Installer . | . . . Robots Hacked . | . . . Non-combat . | . . . Combat . | . . . Robot Hacks Applied . | . . . Relay Couplers Released . | . . . Fabnet Peak Effective % . | . . . Robots Rewired . | . . . Allies Hacked . | . . . Hacks Repelled . | . . . Allies | -11 -10 -10 -------- Run | Yrd Mat Min Total Allies 3 | . . 3 Largest Group 3 | . . 3 Highest-Rated Group 40 | . . 40 Highest-Rated Ally 16 | . . 16 Total Orders . | . . . Ally Attacks 22 | . . 22 Total Damage 206 | . . 206 Kills 4 | . . 4 Allies Corrupted . | . . . Allies Melted . | . . . Intel | -11 -10 -10 ------- Run | Yrd Mat Min Active Infowar (turns) 2350 | 32 1565 753 Seismic 2350 | 32 1565 753 Robot Analysis Total . | . . . Derelict Logs Recovered 1 | . . 1 Drone Launches . | . . . Drone Recoveries . | . . . Exploration | -11 -10 -10 ------------- Run | Yrd Mat Min Turns Passed 2522 | 204 1565 753 Spaces Moved 1333 | 110 809 414 Core 19 | 19 . . Treads 1314 | 91 809 414 Legs . | . . . Wheels . | . . . Hover . | . . . Flight . | . . . Fastest Speed 50 | 50 160 152 Average Speed 157 | 141 160 158 Slowest Speed 160 | 160 160 160 Overloaded Moves . | . . . Propulsion Burnouts . | . . . Robots Hopped . | . . . Potential Cave-ins . | . . . Cave-ins Triggered . | . . . Exploration Rate (%) 56 | 5 97 68 Regions Visited 2 Branch Regions 1 Pre-discovered Areas . | . . . Known Exits Taken 1 | . 1 . Unknown Exits Taken 1 | 1 . . Scrap Searched 2 | . . 2 Spaces Dug . | . . . Terrain Destroyed . | . . . Melee . | . . . Projectile . | . . . AOE . | . . . Terrain Rammed . | . . . Walls Destroyed . | . . . Machines Disabled . | . . . Actions | -11 -10 -10 --------- Run | Yrd Mat Min Total 1559 | 139 942 478 Wait 26 | . 15 11 Move 1331 | 109 808 414 Hop . | . . . Pick Up 36 | 12 17 7 Fast Attach . | . . . Attach 17 | 7 6 4 Detach 1 | . 1 . Swap 7 | . 4 3 Drop 13 | . 8 5 Fire 127 | 11 83 33 Melee . | . . . Ram . | . . . Kick . | . . . Crush . | . . . Escape Stasis . | . . . Rewire . | . . . Trap 1 | . . 1 Miscellaneous . | . . . Route ------- -11/Scrapyard -10/Materials (discovered 5 exits: [*Mat x3] / *Min / [*Sub]) -10/Mines History --------- Turn | Location | Event 8 | -11/Scrapyard | Discovered new exit (range 15) 205 | -11/Scrapyard | Entered Materials 304 | -10/Materials | Build established: Mutant 318 | -10/Materials | Discovered new exit (range 10) 561 | -10/Materials | Identified exit to Mines 1002 | -10/Materials | Discovered new exit (range 12) 1032 | -10/Materials | Discovered new exit (range 5) 1330 | -10/Materials | Discovered new exit (range 11) 1755 | -10/Materials | Lost 3 parts (1p1n1w) 1770 | -10/Materials | Entered Mines 1775 | -10/Mines | Core integrity fell below 50% 1801 | -10/Mines | Core integrity fell below 20% 1828 | -10/Mines | Learned 2 Materials zone layouts 1882 | -10/Mines | Assisted by bots powering up and referring to "LRC-V3" 2033 | -10/Mines | Lost 3 allies 2351 | -10/Mines | Met a Derelict shopkeep closing up shop 2451 | -10/Mines | Found a hidden stash of uninstalled traps 2523 | -10/Mines | Destroyed by G-34 Mercenary with Small Laser Last Messages --------------- 02353_ ALERT: Derelict activity detected in mines. Dispatching investigation squad. 02355_ LE-L7S(g): "Take whatever you can and run for it!" 02366_ Dropped Lgt. Treads. 02369_ Dropped Ion Engine. 02370_ Dropped Wheel. 02376_ Acquired Hardlight Generator. 02438_ K-01 Serf collects debris. 02451_ A stash of uninstalled traps is collected here! 02452_ K-01 Serf collects debris. 02465_ Searching scrap... 02465_ Found Core Shielding. 02465_ Found 44 Matter. 02466_ Acquired 20 matter. 02479_ K-01 Serf collects debris. 02486_ Installed Proton Bomb Trap. 02490_ K-01 Serf collects debris. 02519_ Lgt. Assault Rifle destroyed. Map ----- +----------------------------------------------------+ | ???# ###??# #????## #???# ## #???? | | ???# ##????# #???## #???# ##### #????? | | ???# ##?????# ##### ##??# #### #????? | | ??? ##??????# ## & #### ## ##????? | | ??? ##???????# &^ # ####### | | ?? #????????# #### ## # | | ?? ????????##### [= #??##### ##### # | | ?? ##????????????# !%## ##??????# ##??# # | | ? #??????????????## * ######???????# #??# # | | ? ????????????????## [%!#????????????# #??# # | | ?? ?????????????????# =##????????????# #??# # | | ???? ?????????????????# ###?????????????# ##?# # | | ??????????????????????# #???????????????# #?# # | | ??????????????????????# #???????????????# #?# | | ??????????????????????# #???????????????# ##### | | ??????????????????????# #???????????????## ##?? | | ??????????????????????# ##???????????????## ##? | | ??????????????????????# #?????????????##### ## | | ??????????????????????### #?????????????#"!### | | ????????????????????????# #?????????????#"*=]#X | | ????????????????????????# #?????????????#"== | | ????????????????????????# #?????????????#"/ | | ????????????????????????# #?????????????#"! # | | ????????????????????????# #?????????????#"=### | | ????????????????????????# ### #?????####?### | | ????????????????????????#@ #?????????????## | | ???????????????????????# ###??????????????## | | ?????????????????????? g ##?????????????????# | | ????????????????????? #??????????????????? | | ???????????????????? g #?????????????????? | | ?????????????????? ????????????????? | | ????????????????? ???????????????? | | ???????????????? ## ## ??????????????? | | ?????????????? ##?## ##?# #?????????????? | | ????????????? #?????###???# ##?????????????? | | ??????????????# ?????????????###??????????????? | | ??????????????# ???????????????????????????????? | | ???????????????? ????????????????????????????????? | | ?????????????????????????????????????????????????? | | ?????????????????????????????????????????????????? | | ?????????????????????????????????????????????????? | | ?????????????????????????????????????????????????? | | | | | | | | | | | | | | | | | +----------------------------------------------------+ Best States ------------- Heat Dissipation 25 Energy Generation 14 Energy Capacity 275 Matter Stores 300 Matter Capacity 300 Sight Range 16 Terrain Scan Density 10 Evasion (%) 50 Recoil Reduction 2 Item Schematics ----------------- None Robot Schematics ------------------ None Fabricated ------------ Nothing Repaired ---------- Nothing Alien Tech Used ----------------- None Achievements -------------- None Challenges ------------ None Game ------ Seed ProcessingImpulseMount Manual? 0 Play Time 00:12:37 Cumulative 108.0 hours Start 2025.08.07 @ 02:02:28 End 2025.08.07 @ 02:14:30 Sessions 1 Manual Loads 0 Difficulty Rogue Special Mode None Game No. 193 Rogue 193 Adventurer 0 Explorer 0 Win Type - Total 1 Types 1/0/0/0/0/0/0/0/0/0 Lore% 68 Gallery% 61 Achievement% 43 Wizard Run 0 Options --------- Layout 1 ASCII 0 Keyboard 0 Movement Mouse Keybinds 0 Fullscreen 1 Font 24/Smallcaps Map View 50x35 Zoom Use 0% Tactical HUD 1 Map Filters NONE Filters NONE Steam 1 RUN: dadef661-9bcb-4507-bb9a-97ad7e64f423